[Event "GER-chT Youth Countries 2020"]
[Site "Berlin"]
[Date "2020.10.03"]
[Round "6"]
[White "Haubold, Sebastian Marcel"]
[Black "Bardorz, Jana"]
[Result "1-0"]
[ECO "C75"]
[WhiteElo "1769"]
[BlackElo "1960"]
[Annotator "ChessBase"]
[PlyCount "54"]
[EventDate "2020.09.30"]
[EventType "team-tourn"]
[EventRounds "7"]
[EventCountry "GER"]
[SourceTitle "playchess.com"]
[Source "ChessBase"]
[SourceQuality "1"]
[TimeControl "30/5400+30:0"]

1. e4 {[%emt 0:00:00]} e5 {[%emt 0:00:00]} 2. Nf3 {[%emt 0:00:00]} Nc6 {[%emt 0:00:00]} 3. Bb5 {[%emt 0:00:00]} a6 {[%emt 0:00:00]} 4. Ba4 {[%emt 0:00:00]} d6 {[%emt 0:00:00]} 5. c3 {[%emt 0:01:12]} Bd7 {[%emt 0:00:42]} 6. O-O {[%emt 0:02:26]} g6 {[%emt 0:01:35]} 7. d4 {[%emt 0:00:55]} Bg7 {[%emt 0:00:25]} 8. Re1 {[%emt 0:04:06]} Nf6 {[%emt 0:03:16]} 9. Nbd2 {[%emt 0:06:51]} O-O {[%emt 0:03:02]} 10. h3 {[%emt 0:07:10]} Re8 {[%emt 0:02:32]} 11. a3 {[%emt 0:04:28]} b5 {[%emt 0:10:50]} 12. Bb3 {[%emt 0:09:00]} exd4 {[%emt 0:06:54]} 13. cxd4 {[%emt 0:00:12]} Na5 {[%emt 0:01:54]} 14. Ba2 {[%emt 0:00:28]} c5 {[%emt 0:06:54]} 15. e5 {[%emt 0:04:50]} Nh5 {[%emt 0:04:42]} 16. Ne4 {[%emt 0:02:21]} dxe5 {[%emt 0:04:30]} 17. dxc5 {[%emt 0:07:32]} Be6 {[%emt 0:05:48]} 18. Nd6 {[%emt 0:03:51]} Re7 {[%emt 0:03:30]} 19. Bg5 {[%emt 0:03:26]} Bxa2 {[%emt 0:07:20]} 20. Bxe7 {[%emt 0:01:26]} Qxe7 {[%emt 0:00:18]} 21. Rxa2 {[%emt 0:00:12]} Rd8 {[%emt 0:04:16]} 22. Qc2 {[%emt 0:02:21]} Nb7 {[%emt 0:03:38]} 23. Nxb7 {[%emt 0:03:30]} Qxb7 {[%emt 0:00:05]} 24. b4 Nf4 25. Qe4 {[%emt 0:06:52]} Rd5 {[%emt 0:04:19]} 26. Rc2 {[%emt 0:04:40]} Qc6 {[%emt 0:05:08]} 27. Nd4 {[%emt 0:09:17]} exd4 {[%emt 0:02:58]} 1-0

[Event "GER-chT Youth Countries 2020"]
[Site "Berlin"]
[Date "2020.10.03"]
[Round "6"]
[White "Hecht, Jonas Christian"]
[Black "Schubert, Nikita"]
[Result "1-0"]
[ECO "C45"]
[WhiteElo "1764"]
[BlackElo "1946"]
[Annotator "ChessBase"]
[PlyCount "123"]
[EventDate "2020.09.30"]
[EventType "team-tourn"]
[EventRounds "7"]
[EventCountry "GER"]
[SourceTitle "playchess.com"]
[Source "ChessBase"]
[SourceQuality "1"]
[TimeControl "30/5400+30:0"]

1. e4 {[%emt 0:00:00]} e5 {[%emt 0:00:00]} 2. Nf3 {[%emt 0:00:00]} Nc6 {[%emt 0:00:00]} 3. d4 {[%emt 0:00:00]} exd4 {[%emt 0:00:13]} 4. Nxd4 {[%emt 0:00:00]} Nf6 {[%emt 0:00:39]} 5. Nxc6 {[%emt 0:00:00]} bxc6 {[%emt 0:00:26]} 6. e5 {[%emt 0:00:00]} Qe7 7. Qe2 Nd5 8. c4 Ba6 9. b3 g6 10. g3 Bg7 11. Bb2 O-O 12. Bg2 Rae8 {[%emt 0:11:12]} 13. O-O {[%emt 0:01:54]} Bxe5 {[%emt 0:13:33]} 14. Bxe5 {[%emt 0:00:06]} Qxe5 {[%emt 0:00:10]} 15. Qxe5 {[%emt 0:00:04]} Rxe5 {[%emt 0:00:08]} 16. cxd5 {[%emt 0:00:05]} Bxf1 {[%emt 0:00:24]} 17. Kxf1 {[%emt 0:00:05]} cxd5 {[%emt 0:01:03]} 18. Nc3 {[%emt 0:00:18]} c6 {[%emt 0:00:50]} 19. Rd1 {[%emt 0:00:16]} Rfe8 {[%emt 0:09:33]} 20. Bf3 {[%emt 0:00:06]} Kf8 {[%emt 0:01:59]} 21. Ne2 {[%emt 0:00:05]} Ke7 {[%emt 0:01:48]} 22. Rd4 {[%emt 0:00:12]} Rb8 {[%emt 0:10:25]} 23. Rh4 {[%emt 0:02:37]} h5 {[%emt 0:00:33]} 24. Ra4 {[%emt 0:00:14]} Rb7 {[%emt 0:01:07]} 25. Nf4 {[%emt 0:01:42]} Kd6 {[%emt 0:08:44]} 26. Nd3 {[%emt 0:01:13]} Re8 {[%emt 0:01:39]} 27. b4 {[%emt 0:02:29]} Ra8 {[%emt 0:05:56]} 28. Ke2 {[%emt 0:01:36]} a5 {[%emt 0:07:35]} 29. Kd2 {[%emt 0:05:24]} Rba7 {[%emt 0:08:04]} 30. b5 {[%emt 0:01:23]} Rb8 {[%emt 0:02:45]} 31. bxc6 {[%emt 1:30:31]} dxc6 {[%emt 1:30:17]} 32. Rf4 {[%emt 0:02:26]} Re8 {[%emt 0:06:36]} 33. h4 {[%emt 0:06:05]} Rb7 {[%emt 0:03:49]} 34. Kc2 {[%emt 0:00:42]} Ree7 {[%emt 0:02:57]} 35. Kc1 {[%emt 0:03:02]} c5 {[%emt 0:01:44]} 36. Kc2 {[%emt 0:03:44]} c4 {[%emt 0:01:54]} 37. Nb2 {[%emt 0:00:49]} Rb5 {[%emt 0:01:16]} 38. Rd4 {[%emt 0:04:41]} Ke5 {[%emt 0:00:34]} 39. Rd2 {[%emt 0:01:23]} Rc7 {[%emt 0:00:56]} 40. Kc3 {[%emt 0:13:47]} Kd6 {[%emt 0:00:34]} 41. Nd1 {[%emt 0:03:46]} Rd7 {[%emt 0:00:00]} 42. Ne3 {[%emt 0:00:00]} Ke6 {[%emt 0:00:00]} 43. Rd4 {[%emt 0:00:00]} Rd6 {[%emt 0:00:00]} 44. Bg2 {[%emt 0:00:00]} Ke5 {[%emt 0:00:00]} 45. f4+ {[%emt 0:00:00]} Ke6 {[%emt 0:00:00]} 46. Bf3 {[%emt 0:00:00]} f5 {[%emt 0:00:00]} 47. Bxd5+ {[%emt 0:00:00]} Ke7 {[%emt 0:02:02]} 48. Kxc4 {[%emt 0:00:00]} Rb1 {[%emt 0:00:20]} 49. Rd2 {[%emt 0:00:00]} Re1 {[%emt 0:01:04]} 50. Kd4 {[%emt 0:00:00]} Rg1 {[%emt 0:00:34]} 51. Rd3 {[%emt 0:00:00]} Ra1 {[%emt 0:01:07]} 52. a3 {[%emt 0:00:00]} Rd8 {[%emt 0:00:29]} 53. Nc4 {[%emt 0:00:00]} Rb1 {[%emt 0:00:23]} 54. Ne5 {[%emt 0:00:00]} Kf6 {[%emt 0:00:32]} 55. Rc3 {[%emt 0:00:00]} Rd1+ {[%emt 0:00:33]} 56. Nd3 {[%emt 0:00:00]} Rg1 {[%emt 0:00:02]} 57. Rc6+ {[%emt 0:00:00]} Kg7 {[%emt 0:00:18]} 58. Rc7+ {[%emt 0:00:00]} Kh6 {[%emt 0:00:44]} 59. a4 {[%emt 0:00:00]} Ra1 {[%emt 0:00:50]} 60. Ke5 {[%emt 0:02:38]} Rxa4 {[%emt 0:00:52]} 61. Nc5 {[%emt 1:31:28]} Ra1 {[%emt 1:30:22]} 62. Bc4 {[%emt 0:02:59]} 1-0

[Event "GER-chT Youth Countries 2020"]
[Site "Berlin"]
[Date "2020.10.03"]
[Round "6"]
[White "Hagenbeck-Huebert, Ben"]
[Black "Mueller, Maximilian"]
[Result "1-0"]
[ECO "C15"]
[WhiteElo "1749"]
[BlackElo "2303"]
[Annotator "ChessBase"]
[PlyCount "79"]
[EventDate "2020.09.30"]
[EventType "team-tourn"]
[EventRounds "7"]
[EventCountry "GER"]
[SourceTitle "playchess.com"]
[Source "ChessBase"]
[SourceQuality "1"]
[TimeControl "30/5400+30:0"]

1. e4 {[%emt 0:00:00]} e6 {[%emt 0:00:00]} 2. d4 {[%emt 0:00:00]} d5 {[%emt 0:00:00]} 3. Nc3 {[%emt 0:00:00]} Bb4 {[%emt 0:00:00]} 4. exd5 {[%emt 0:00:07]} exd5 {[%emt 0:01:17]} 5. Bd3 {[%emt 0:01:57]} Nc6 {[%emt 0:00:42]} 6. Nf3 {[%emt 0:03:45]} Nge7 {[%emt 0:01:40]} 7. h3 {[%emt 0:02:06]} Be6 {[%emt 0:01:37]} 8. O-O {[%emt 0:02:10]} Bd6 {[%emt 0:00:44]} 9. Re1 {[%emt 0:05:46]} Qd7 {[%emt 0:05:40]} 10. Bb5 {[%emt 0:04:28]} h6 {[%emt 0:06:02]} 11. Bxc6 {[%emt 0:05:46]} Qxc6 {[%emt 0:00:58]} 12. Ne5 {[%emt 0:00:58]} Bxe5 {[%emt 0:04:55]} 13. Rxe5 {[%emt 0:01:51]} O-O-O {[%emt 0:00:29]} 14. Qf3 {[%emt 0:18:11]} g5 {[%emt 0:03:11]} 15. a4 {[%emt 0:07:06]} Ng6 {[%emt 0:00:55]} 16. Re2 {[%emt 0:00:23]} Nh4 {[%emt 0:08:31]} 17. Qg3 {[%emt 0:03:12]} Nf5 {[%emt 0:02:44]} 18. Qd3 {[%emt 0:00:34]} Nh4 {[%emt 0:03:43]} 19. Nb5 {[%emt 0:03:02]} Kb8 {[%emt 0:00:34]} 20. Ra3 {[%emt 0:00:23]} Qd7 {[%emt 0:02:48]} 21. Rc3 {[%emt 0:00:48]} c6 {[%emt 0:00:54]} 22. Qg3+ {[%emt 0:00:15]} Ka8 {[%emt 0:01:09]} 23. Nc7+ {[%emt 0:00:21]} Kb8 {[%emt 0:00:12]} 24. Nxe6+ {[%emt 0:00:21]} Kc8 {[%emt 0:00:18]} 25. Nxd8 {[%emt 0:00:24]} Rxd8 {[%emt 0:00:02]} 26. b4 {[%emt 0:06:44]} Nf5 {[%emt 0:00:45]} 27. Qe5 {[%emt 0:00:36]} Rg8 {[%emt 0:01:16]} 28. b5 {[%emt 0:01:11]} Nd6 {[%emt 0:01:14]} 29. bxc6 {[%emt 0:00:47]} bxc6 {[%emt 0:00:08]} 30. Qxd5 {[%emt 0:02:00]} Kc7 {[%emt 0:00:31]} 31. Ba3 {[%emt 1:31:03]} Nc8 {[%emt 1:31:30]} 32. Qxd7+ {[%emt 0:00:50]} Kxd7 {[%emt 0:00:03]} 33. Rf3 {[%emt 0:00:33]} Rg7 {[%emt 0:00:35]} 34. Bc5 {[%emt 0:00:17]} a6 {[%emt 0:00:17]} 35. Rf6 {[%emt 0:00:38]} h5 {[%emt 0:00:31]} 36. Re5 {[%emt 0:00:33]} h4 {[%emt 0:00:18]} 37. Ref5 {[%emt 0:00:24]} g4 {[%emt 0:01:17]} 38. Rxf7+ {[%emt 0:00:27]} Rxf7 {[%emt 0:00:01]} 39. Rxf7+ {[%emt 0:00:08]} Ke6 {[%emt 0:00:02]} 40. Rc7 {[%emt 0:00:18]} 1-0

[Event "GER-chT Youth Countries 2020"]
[Site "Berlin"]
[Date "2020.10.03"]
[Round "6"]
[White "Pohle, Saskia"]
[Black "Alhassan, Jodi"]
[Result "1-0"]
[ECO "B98"]
[WhiteElo "1749"]
[BlackElo "1275"]
[Annotator "NA"]
[PlyCount "54"]
[EventDate "2020.09.30"]
[EventType "team-tourn"]
[EventRounds "7"]
[EventCountry "GER"]
[SourceTitle "playchess.com"]
[Source "ChessBase"]
[SourceQuality "1"]
[TimeControl "30/5400+30:0"]

1. e4 {[%emt 0:00:00]} c5 {[%emt 0:00:00]} 2. Nf3 {[%emt 0:00:00]} d6 {[%emt 0:00:00]} 3. d4 {[%emt 0:00:00]} cxd4 {[%emt 0:00:00]} 4. Nxd4 {[%emt 0:00:00]} Nf6 {[%emt 0:00:03]} 5. Nc3 {[%emt 0:00:00]} a6 {[%emt 0:00:11]} 6. Bg5 {[%emt 0:00:35]} e6 {[%emt 0:00:18]} 7. f4 {[%emt 0:00:34]} Be7 {[%emt 0:02:35]} 8. Qf3 {[%emt 0:00:10]} O-O {[%emt 0:06:00]} 9. O-O-O {[%emt 0:00:29]} Nbd7 {[%emt 0:15:48]} 10. g4 {[%emt 0:00:34]} Rb8 {[%emt 0:07:24]} 11. h4 e5 {[%emt 0:19:43]} 12. Nf5 {[%emt 0:03:43]} b5 {[%emt 0:14:40]} 13. Bxf6 Bxf6 {[%emt 0:04:12]} 14. g5 {[%emt 0:04:53]} Be7 {[%emt 0:01:10]} 15. Nd5 {[%emt 0:00:26]} Re8 {[%emt 0:01:48]} 16. Nfxe7+ {[%emt 0:00:37]} Rxe7 {[%emt 0:00:21]} 17. Nxe7+ {[%emt 0:00:53]} Qxe7 {[%emt 0:00:16]} 18. f5 {[%emt 0:00:16]} f6 {[%emt 0:06:49]} 19. Rg1 {[%emt 0:01:12]} Bb7 {[%emt 0:08:49]} 20. Qg4 {[%emt 0:03:15]} b4 {[%emt 0:03:00]} 21. Rd2 {[%emt 0:03:26]} Rf8 {[%emt 0:03:33]} 22. Rdg2 {[%emt 0:00:49]} fxg5 {[%emt 0:01:49]} 23. hxg5 {[%emt 0:01:00]} a5 {[%emt 0:01:39]} 24. f6 {[%emt 0:01:06]} Qf7 {[%emt 0:00:42]} 25. g6 {[%emt 0:00:30]} Qxf6 {[%emt 0:00:30]} 26. gxh7+ {[%emt 0:00:30]} Kxh7 {[%emt 0:00:30]} 27. Qxd7 {[%emt 0:00:30]} Qf7 {[%emt 0:00:30]} 1-0

[Event "GER-chT Youth Countries 2020"]
[Site "Berlin"]
[Date "2020.10.03"]
[Round "6"]
[White "Bildat, Emilia"]
[Black "Mundt, Alexandra"]
[Result "1-0"]
[ECO "A10"]
[WhiteElo "1704"]
[BlackElo "1786"]
[Annotator "NA"]
[PlyCount "55"]
[EventDate "2020.09.30"]
[EventType "team-tourn"]
[EventRounds "7"]
[EventCountry "GER"]
[SourceTitle "playchess.com"]
[Source "ChessBase"]
[SourceQuality "1"]
[TimeControl "30/5400+30:0"]

1. c4 {[%emt 0:00:00]} g6 {[%emt 0:00:00]} 2. g3 {[%emt 0:00:00]} Bg7 {[%emt 0:00:00]} 3. Bg2 {[%emt 0:00:11]} d6 {[%emt 0:00:00]} 4. Nc3 {[%emt 0:00:13]} Nd7 {[%emt 0:00:05]} 5. d3 {[%emt 0:00:39]} e5 {[%emt 0:01:01]} 6. e3 {[%emt 0:00:51]} Ne7 {[%emt 0:01:50]} 7. Nge2 {[%emt 0:00:38]} O-O {[%emt 0:02:09]} 8. O-O {[%emt 0:00:55]} f5 {[%emt 0:11:51]} 9. f4 {[%emt 0:02:22]} c6 {[%emt 0:02:05]} 10. Rb1 {[%emt 0:04:36]} Nf6 {[%emt 0:04:32]} 11. b4 {[%emt 0:03:13]} Re8 {[%emt 0:08:00]} 12. b5 {[%emt 0:05:24]} Kh8 {[%emt 0:15:18]} 13. Ba3 {[%emt 0:04:52]} exf4 {[%emt 0:08:40]} 14. bxc6 {[%emt 0:03:50]} Nxc6 {[%emt 0:01:24]} 15. exf4 {[%emt 0:03:23]} Qe7 {[%emt 0:06:21]} 16. h3 {[%emt 0:03:09]} Be6 {[%emt 0:12:17]} 17. Re1 {[%emt 0:15:00]} a6 {[%emt 0:06:25]} 18. Rb6 {[%emt 0:05:16]} Bxc4 {[%emt 0:09:40]} 19. Rxc6 {[%emt 0:08:54]} bxc6 {[%emt 0:04:35]} 20. dxc4 {[%emt 0:04:43]} Qe3+ {[%emt 0:00:11]} 21. Kh2 {[%emt 0:05:15]} Nh5 {[%emt 0:00:46]} 22. Bc1 {[%emt 0:03:05]} Qf2 {[%emt 0:02:40]} 23. Rf1 {[%emt 0:01:18]} Qc5 {[%emt 0:00:36]} 24. Qa4 {[%emt 0:01:11]} Rac8 {[%emt 0:00:58]} 25. Ba3 {[%emt 0:04:49]} Qe3 {[%emt 0:00:28]} 26. Rf3 {[%emt 0:00:23]} Qe7 {[%emt 0:00:32]} 27. Rd3 {[%emt 0:01:08]} d5 {[%emt 0:00:21]} 28. Bxe7 {[%emt 0:00:18]} 1-0

[Event "GER-chT Youth Countries 2020"]
[Site "Berlin"]
[Date "2020.10.03"]
[Round "6"]
[White "Aumueller, Naum"]
[Black "Voigt, Anastasia"]
[Result "1/2-1/2"]
[ECO "C50"]
[WhiteElo "1690"]
[BlackElo "1562"]
[Annotator "NA"]
[PlyCount "83"]
[EventDate "2020.09.30"]
[EventType "team-tourn"]
[EventRounds "7"]
[EventCountry "GER"]
[SourceTitle "playchess.com"]
[Source "ChessBase"]
[SourceQuality "1"]
[TimeControl "30/5400+30:0"]

1. e4 {[%emt 0:00:00]} e5 {[%emt 0:00:00]} 2. Nf3 {[%emt 0:00:00]} Nc6 {[%emt 0:00:00]} 3. Bc4 {[%emt 0:00:00]} Bc5 {[%emt 0:00:00]} 4. d3 {[%emt 0:01:45]} Nf6 {[%emt 0:00:00]} 5. Nc3 {[%emt 0:00:45]} d6 {[%emt 0:01:30]} 6. Bg5 {[%emt 0:00:47]} h6 {[%emt 0:02:49]} 7. Bxf6 {[%emt 0:00:47]} Qxf6 {[%emt 0:00:24]} 8. Nd5 {[%emt 0:01:02]} Qd8 {[%emt 0:00:55]} 9. c3 {[%emt 0:03:40]} a6 {[%emt 0:13:42]} 10. d4 {[%emt 0:10:59]} exd4 {[%emt 0:00:19]} 11. cxd4 {[%emt 0:02:53]} Ba7 {[%emt 0:00:33]} 12. h3 {[%emt 0:07:07]} O-O {[%emt 0:11:14]} 13. O-O {[%emt 0:06:02]} Ne7 {[%emt 0:07:19]} 14. Re1 {[%emt 0:08:31]} Nxd5 {[%emt 0:01:42]} 15. Bxd5 {[%emt 0:00:28]} c6 {[%emt 0:03:02]} 16. Bb3 {[%emt 0:03:16]} Be6 {[%emt 0:13:12]} 17. Bc2 {[%emt 0:04:27]} d5 {[%emt 0:00:40]} 18. Qd3 {[%emt 0:05:10]} g6 {[%emt 0:03:34]} 19. Qe3 {[%emt 0:05:49]} Kg7 {[%emt 0:03:08]} 20. Rad1 {[%emt 0:04:02]} dxe4 {[%emt 0:03:45]} 21. Bxe4 {[%emt 0:02:14]} Re8 {[%emt 0:01:22]} 22. Qc3 {[%emt 0:03:20]} Kh7 {[%emt 0:02:15]} 23. Ne5 {[%emt 0:03:37]} Qf6 {[%emt 0:02:49]} 24. Bf3 {[%emt 0:06:45]} Rad8 {[%emt 0:01:50]} 25. Bg4 {[%emt 0:04:02]} Bxg4 {[%emt 0:02:00]} 26. Nxg4 {[%emt 0:00:20]} Rxe1+ {[%emt 0:02:07]} 27. Qxe1 {[%emt 0:00:43]} Qe6 {[%emt 0:04:09]} 28. Qe3 {[%emt 0:03:12]} Qxe3 {[%emt 0:05:30]} 29. fxe3 {[%emt 0:00:07]} f5 {[%emt 0:00:30]} 30. Ne5 {[%emt 0:01:27]} f4 {[%emt 0:01:10]} 31. Kf2 {[%emt 1:30:56]} fxe3+ {[%emt 1:31:14]} 32. Kxe3 {[%emt 0:00:29]} Kg7 {[%emt 0:01:34]} 33. Ke4 {[%emt 0:02:55]} Rd5 {[%emt 0:01:00]} 34. Nf3 {[%emt 0:02:40]} Kf6 {[%emt 0:01:42]} 35. a4 {[%emt 0:00:56]} g5 {[%emt 0:03:13]} 36. g4 {[%emt 0:01:43]} Ke6 {[%emt 0:01:14]} 37. Rc1 {[%emt 0:01:04]} Rd8 {[%emt 0:01:34]} 38. Rc4 {[%emt 0:01:15]} Rf8 {[%emt 0:00:40]} 39. a5 {[%emt 0:03:12]} Rf4+ {[%emt 0:03:12]} 40. Ke3 {[%emt 0:00:03]} Kd5 {[%emt 0:01:26]} 41. Rb4 {[%emt 0:00:00]} Rf7 {[%emt 0:00:00]} 42. Ra4 {[%emt 0:00:00]} 1/2-1/2

[Event "GER-chT Youth Countries 2020"]
[Site "Berlin"]
[Date "2020.10.03"]
[Round "6"]
[White "Werner, Rosalie"]
[Black "Rudolph, Eva"]
[Result "1/2-1/2"]
[ECO "B42"]
[WhiteElo "1688"]
[BlackElo "1836"]
[Annotator "NA"]
[PlyCount "128"]
[EventDate "2020.09.30"]
[EventType "team-tourn"]
[EventRounds "7"]
[EventCountry "GER"]
[SourceTitle "playchess.com"]
[Source "ChessBase"]
[SourceQuality "1"]
[TimeControl "30/5400+30:0"]

1. e4 {[%emt 0:00:00]} c5 {[%emt 0:00:00]} 2. Nf3 {[%emt 0:00:00]} e6 {[%emt 0:00:00]} 3. d4 {[%emt 0:00:00]} cxd4 {[%emt 0:00:00]} 4. Nxd4 {[%emt 0:00:00]} a6 {[%emt 0:00:00]} 5. Bd3 {[%emt 0:00:00]} Nf6 {[%emt 0:00:03]} 6. Qe2 {[%emt 0:00:15]} d6 {[%emt 0:00:51]} 7. c4 {[%emt 0:00:16]} Qc7 {[%emt 0:01:44]} 8. Nc3 {[%emt 0:00:22]} Nbd7 {[%emt 0:01:15]} 9. Bd2 g6 10. O-O {[%emt 0:09:37]} Bg7 {[%emt 0:01:14]} 11. Nf3 {[%emt 0:19:47]} O-O {[%emt 0:01:49]} 12. Rae1 {[%emt 0:01:21]} b6 {[%emt 0:02:13]} 13. Kh1 {[%emt 0:01:44]} Bb7 {[%emt 0:02:01]} 14. Ng1 {[%emt 0:05:14]} Rac8 {[%emt 0:07:23]} 15. b3 {[%emt 0:00:37]} Nc5 {[%emt 0:06:01]} 16. Bb1 {[%emt 0:04:23]} Qc6 {[%emt 0:11:31]} 17. f4 {[%emt 0:03:22]} Ba8 {[%emt 0:09:02]} 18. Nf3 {[%emt 0:01:09]} Ng4 {[%emt 0:18:37]} 19. Nd4 {[%emt 0:06:53]} Bxd4 {[%emt 0:03:42]} 20. Qxg4 {[%emt 0:00:23]} Nd7 {[%emt 0:02:37]} 21. f5 {[%emt 0:07:56]} Rfe8 22. Qh3 {[%emt 0:06:50]} Bg7 {[%emt 0:12:40]} 23. Ne2 {[%emt 0:06:20]} Nf6 {[%emt 0:04:46]} 24. Ng3 {[%emt 0:00:33]} exf5 {[%emt 0:01:52]} 25. exf5 {[%emt 0:01:06]} Rxe1 {[%emt 0:00:42]} 26. Rxe1 {[%emt 0:02:21]} Ng4 {[%emt 0:01:50]} 27. Re2 {[%emt 0:03:15]} Nf6 {[%emt 0:04:18]} 28. fxg6 {[%emt 0:03:55]} hxg6 {[%emt 0:00:38]} 29. Bh6 {[%emt 0:03:47]} Re8 {[%emt 0:00:48]} 30. Rxe8+ {[%emt 0:04:26]} Qxe8 {[%emt 0:00:08]} 31. Bd2 {[%emt 1:30:31]} Qc6 {[%emt 1:31:25]} 32. Nf1 {[%emt 0:03:47]} d5 {[%emt 0:02:48]} 33. cxd5 {[%emt 0:01:50]} Qxd5 {[%emt 0:00:03]} 34. Qc8+ {[%emt 0:01:12]} Kh7 {[%emt 0:00:10]} 35. Qh3+ {[%emt 0:00:09]} Nh5 {[%emt 0:00:46]} 36. Ng3 {[%emt 0:02:00]} Qxd2 {[%emt 0:02:16]} 37. Qxh5+ {[%emt 0:00:06]} Kg8 {[%emt 0:00:10]} 38. Qe2 {[%emt 0:00:17]} Qc1+ {[%emt 0:01:08]} 39. Qf1 {[%emt 0:00:11]} Qd2 {[%emt 0:01:18]} 40. Qe2 {[%emt 0:00:34]} Qc1+ {[%emt 0:01:02]} 41. Qf1 {[%emt 0:00:09]} Qxf1+ {[%emt 0:00:00]} 42. Nxf1 {[%emt 0:00:00]} Kf8 {[%emt 0:00:00]} 43. Bd3 {[%emt 0:00:00]} a5 {[%emt 0:00:00]} 44. Nd2 {[%emt 0:00:00]} Bd4 {[%emt 0:00:00]} 45. Nf3 {[%emt 0:00:00]} Bc5 {[%emt 0:00:00]} 46. Ne5 {[%emt 0:00:00]} Bd4 {[%emt 0:00:00]} 47. Nf3 {[%emt 0:00:00]} Be3 {[%emt 0:00:00]} 48. Ne5 {[%emt 0:00:00]} Bd5 {[%emt 0:00:00]} 49. Nc4 {[%emt 0:00:00]} Bd4 {[%emt 0:00:00]} 50. h3 {[%emt 0:00:00]} Ke7 {[%emt 0:00:00]} 51. Kh2 {[%emt 0:00:00]} Bf2 {[%emt 0:00:31]} 52. h4 {[%emt 0:00:00]} Kd7 {[%emt 0:01:27]} 53. g3 {[%emt 0:00:00]} Kc6 {[%emt 0:01:14]} 54. Na3 {[%emt 0:00:00]} Kc5 {[%emt 0:00:35]} 55. Nc2 {[%emt 0:00:00]} b5 {[%emt 0:00:46]} 56. Kh3 {[%emt 0:00:00]} a4 {[%emt 0:01:28]} 57. b4+ {[%emt 0:00:00]} Kc6 {[%emt 0:00:22]} 58. a3 Bb3 {[%emt 0:00:47]} 59. Kg4 {[%emt 0:00:00]} Bxc2 {[%emt 0:02:02]} 60. Bxc2 {[%emt 0:00:00]} Bd4 {[%emt 0:00:17]} 61. Be4+ {[%emt 1:25:43]} Kd6 {[%emt 1:30:23]} 62. Bd3 {[%emt 0:00:41]} Kc6 {[%emt 0:00:01]} 63. Be4+ {[%emt 0:00:09]} Kd6 {[%emt 0:01:47]} 64. Bd3 {[%emt 0:00:12]} Kc6 1/2-1/2

[Event "GER-chT Youth Countries 2020"]
[Site "Berlin"]
[Date "2020.10.03"]
[Round "6"]
[White "Grabs, Peter"]
[Black "Kluehs, Gustaf"]
[Result "1/2-1/2"]
[ECO "B31"]
[WhiteElo "1674"]
[BlackElo "1827"]
[Annotator "NA"]
[PlyCount "70"]
[EventDate "2020.09.30"]
[EventType "team-tourn"]
[EventRounds "7"]
[EventCountry "GER"]
[SourceTitle "playchess.com"]
[Source "ChessBase"]
[SourceQuality "1"]
[TimeControl "30/5400+30:0"]

1. e4 {[%emt 0:00:00]} c5 {[%emt 0:00:00]} 2. Nf3 {[%emt 0:00:00]} Nc6 {[%emt 0:00:00]} 3. Bb5 {[%emt 0:00:00]} g6 {[%emt 0:00:00]} 4. O-O {[%emt 0:00:00]} Bg7 {[%emt 0:00:00]} 5. Re1 {[%emt 0:00:00]} e5 {[%emt 0:00:00]} 6. Nc3 {[%emt 0:00:32]} Nge7 {[%emt 0:00:02]} 7. a3 {[%emt 0:03:45]} O-O {[%emt 0:00:42]} 8. Bc4 {[%emt 0:00:22]} d6 {[%emt 0:01:01]} 9. h3 {[%emt 0:00:15]} Nd4 {[%emt 0:01:58]} 10. d3 {[%emt 0:00:33]} h6 {[%emt 0:02:31]} 11. Nd5 {[%emt 0:00:59]} Be6 {[%emt 0:04:33]} 12. Nxd4 {[%emt 0:02:36]} cxd4 {[%emt 0:00:43]} 13. Nxe7+ {[%emt 0:02:41]} Qxe7 {[%emt 0:00:05]} 14. Bxe6 {[%emt 0:00:37]} fxe6 {[%emt 0:02:04]} 15. Qg4 {[%emt 0:00:53]} Kh7 {[%emt 0:01:38]} 16. Bd2 {[%emt 0:00:47]} h5 {[%emt 0:02:04]} 17. Qg3 {[%emt 0:00:52]} Bh6 {[%emt 0:01:05]} 18. Bxh6 {[%emt 0:00:52]} Kxh6 {[%emt 0:00:05]} 19. Rf1 {[%emt 0:00:47]} Rf4 {[%emt 0:02:03]} 20. f3 {[%emt 0:00:27]} Rc8 {[%emt 0:02:21]} 21. Qf2 {[%emt 0:00:48]} Qc7 {[%emt 0:01:08]} 22. Rac1 {[%emt 0:00:39]} Rf7 {[%emt 0:03:42]} 23. Qd2+ {[%emt 0:01:38]} Kg7 {[%emt 0:00:53]} 24. f4 {[%emt 0:04:53]} Rcf8 {[%emt 0:05:23]} 25. fxe5 {[%emt 0:01:01]} Rxf1+ {[%emt 0:00:05]} 26. Rxf1 {[%emt 0:00:07]} Rxf1+ {[%emt 0:00:28]} 27. Kxf1 {[%emt 0:00:08]} dxe5 {[%emt 0:00:26]} 28. Ke1 {[%emt 0:07:43]} Qc5 {[%emt 0:08:22]} 29. Kd1 {[%emt 0:01:30]} Qf8 {[%emt 0:03:58]} 30. Qe2 {[%emt 0:01:34]} b5 {[%emt 0:04:56]} 31. Qf3 {[%emt 1:31:18]} Qc5 {[%emt 1:32:45]} 32. g4 {[%emt 0:00:41]} hxg4 {[%emt 0:02:35]} 33. Qxg4 {[%emt 0:00:17]} Qe7 {[%emt 0:04:32]} 34. Qg3 {[%emt 0:01:26]} Qf6 {[%emt 0:02:47]} 35. Ke2 {[%emt 0:00:37]} a6 {[%emt 0:08:45]} 1/2-1/2